[Event "World U20-ch22"]
[Site "Belfort"]
[Date "1983.08.13"]
[Round "2"]
[White "D'Amore, Carlo"]
[Black "Condie, Mark L"]
[Result "1/2-1/2"]
[ECO "A07"]
[WhiteElo "2305"]
[BlackElo "2345"]
[Annotator "Bulletin/Primel,D"]
[PlyCount "55"]
[EventDate "1983.08.12"]
[EventType "swiss"]
[EventRounds "13"]
[EventCountry "FRA"]
[SourceTitle "EXT 2016"]
[Source "ChessBase"]
[SourceDate "2015.10.08"]
[SourceVersion "1"]
[SourceVersionDate "2015.10.08"]
[SourceQuality "1"]
[TimeControl "40/9000:16/5400:0"]

1. Nf3 d5 2. g3 Nf6 3. Bg2 c6 4. d3 Bg4 5. Nbd2 (5. O-O) 5... e6 (5... Nbd7 6.
O-O e5) 6. O-O Be7 7. c3 O-O 8. Qc2 a5 9. a4 Nbd7 10. e4 Nc5 11. Ne5 (11. b4
axb4 12. cxb4 Na6 13. b5 Nb4 $17) 11... Bh5 12. Re1 Qb6 13. exd5 cxd5 14. d4
Ncd7 15. Ndf3 Nxe5 16. Nxe5 Rfe8 17. Qd3 Ng4 18. Nd7 Qc7 19. Qb5 Red8 20. Nc5
b6 21. Bf4 Bd6 22. Nd3 Bg6 23. Bxd6 Rxd6 24. Nf4 Nf6 25. c4 Be4 26. Bxe4 dxe4
27. d5 exd5 28. Nxd5 1/2-1/2

[Event "FRA-chT Top 12"]
[Site "Drancy"]
[Date "2016.05.28"]
[Round "1.1"]
[White "Maze, Sebastien"]
[Black "Pelletier, Yannick"]
[Result "1-0"]
[ECO "A07"]
[WhiteElo "2614"]
[BlackElo "2558"]
[Annotator "RR"]
[PlyCount "147"]
[EventDate "2016.05.28"]
[EventType "team-tourn"]
[EventRounds "11"]
[EventCountry "FRA"]
[SourceTitle "CBM 172 Extra"]
[Source "ChessBase"]
[SourceDate "2016.06.21"]
[SourceVersion "1"]
[SourceVersionDate "2016.06.21"]
[SourceQuality "1"]
[WhiteTeam "Bois Colombes"]
[BlackTeam "Bischwiller"]
[WhiteTeamCountry "FRA"]
[BlackTeamCountry "FRA"]
[TimeControl "40/5400+30:1800+30"]

1. Nf3 {[%emt 0:00:00][%mdl 512] La partie a obtenu le prix carrefour de la
première ronde} Nf6 {[%emt 0:00:00]} 2. g3 {[%emt 0:00:00]} d5 {[%emt 0:00:28]
} 3. Bg2 {[%emt 0:00:00]} c6 {[%emt 0:00:19]} 4. O-O {[%emt 0:00:00]} Bg4 {
[%emt 0:00:37]} 5. d3 {[%emt 0:00:01]} Nbd7 {[%emt 0:00:05]} 6. h3 {[%emt 0:00:
06]} Bh5 {[%emt 0:00:47]} 7. Qe1 {[%emt 0:00:07]} e5 {[%emt 0:02:03]} 8. e4 {
[%emt 0:00:42]} dxe4 {[%emt 0:00:29]} 9. dxe4 {[%emt 0:00:04]} Be7 {[%emt 0:02:
58]} 10. Nbd2 {[%emt 0:00:42]} O-O {[%emt 0:00:57]} 11. Nc4 {[%emt 0:01:13]}
Qc7 {[%emt 0:01:06]} 12. Nh4 {[%emt 0:00:14]} Rfe8 {[%emt 0:04:46]} 13. a4 {
[%emt 0:01:33]} Bf8 {[%emt 0:03:58]} (13... Nc5 14. Nf5 Bf8 15. f4 Nfd7 16. g4
Bg6 17. Nxg7 Bxg7 18. f5 Ne6 19. Be3 Nf4 20. Qf2 b5 21. Nd2 a6 22. Rad1 Rad8
23. axb5 axb5 24. Nf3 c5 25. fxg6 hxg6 26. Kh1 c4 27. Nxe5 Bxe5 28. Bxf4 Bxf4
29. Qxf4 Ne5 30. Rd5 b4 31. Rfd1 Ra8 32. Qf6 b3 33. cxb3 cxb3 34. Bf1 Qc2 35.
R1d2 Qxe4+ 36. Bg2 Qe1+ 37. Kh2 Rac8 38. R5d4 Rc2 39. Qf4 Rec8 40. Be4 Rxd2+
41. Rxd2 Rc4 42. Rd8+ Kh7 43. Qf6 {Fressinet,L (2700)-Movsesian,S (2653)
Huaian 2016 1/2-1/2}) 14. Bg5 {[%emt 0:10:31]} h6 {[%emt 0:09:28]} 15. Bd2 {
[%emt 0:02:28]} Nc5 {[%emt 0:20:31]} 16. b4 $146 {[%emt 0:13:46]} (16. b3 {
Haub,T (2450)-Jackelen,T (2435) BL2-West 0809 2008 (7.5) 1/2}) 16... Ne6 {
[%emt 0:05:20][%cal Ge6d4]} 17. c3 {[%emt 0:00:11]} Rad8 {[%emt 0:02:02]} 18.
a5 {[%emt 0:23:25] Les Blancs ont un petit avantage d'espace mais la position
Noire est solide} (18. Nf5) 18... b5 $6 {[%emt 0:10:38] Créant des faiblesses
à l'aile-dame} 19. axb6 $1 {[%emt 0:00:35]} (19. Ne3 $143 {[%cal Ge3f5]})
19... axb6 {[%emt 0:00:09]} 20. Be3 $1 {[%emt 0:02:58]} c5 {[%emt 0:00:10]} 21.
b5 $1 $14 {[%emt 0:04:53][%csl Rb6,Gc4,Gc6]} Nd4 $1 {[%emt 0:03:22] La pointe}
22. g4 {[%emt 0:00:30]} (22. cxd4 cxd4 {[%csl Rc4,Re3][%cal Gc7c4]}) 22... Nc2
{[%emt 0:05:10]} 23. Qe2 {[%emt 0:00:16]} Nxa1 {[%emt 0:00:09]} 24. Rxa1 {
[%emt 0:00:03]} Bg6 {[%emt 0:00:23]} 25. Nxg6 {[%emt 0:02:23]} (25. Nf5 $5)
25... fxg6 {[%emt 0:00:03]} 26. Ra6 $16 {[%emt 0:00:12][%csl Rb6]} Rb8 {
[%emt 0:04:20]} 27. Qa2 {[%emt 0:06:21]} Kh7 {[%emt 0:00:04]} 28. f3 {[%emt 0:
01:06]} Rb7 {[%emt 0:05:53]} 29. Bf1 $1 {[%emt 0:01:03][%cal Ge3f2,Gc4e3,Gf1c4,
Ge3d5] Activant la seule pièce Blanche qui restait hors-jeu} Nd7 {[%emt 0:00:
23]} 30. Bf2 {[%emt 0:00:44]} Be7 {[%emt 0:01:10]} 31. Ne3 {[%emt 0:00:36]} Bg5
{[%emt 0:00:52]} 32. Nd5 {[%emt 0:00:55]} (32. Bc4 Bxe3 33. Bxe3 {[%cal Gc4d5]}
g5 {[%cal Gd7f8,Gf8g6,Gg6f4]}) 32... Qd6 {[%emt 0:01:03]} 33. Bc4 {[%emt 0:03:
38]} Rf8 {[%emt 0:01:07]} 34. Kg2 {[%emt 0:00:23]} Nb8 {[%emt 0:01:14]} 35. Ra3
{[%emt 0:05:05]} Rbf7 {[%emt 0:03:49]} 36. Be2 {[%emt 0:00:05]} Nd7 {[%emt 0:
00:45]} 37. Ra7 {[%emt 0:04:45]} Bd8 {[%emt 0:01:23]} 38. Ne3 {[%emt 0:05:58]}
Bg5 {[%emt 0:03:45]} 39. Nd5 {[%emt 0:00:47] Une répétition de coups pour
passer le contrôle de temps} Bd8 {[%emt 0:00:08]} 40. Bg3 {[%emt 0:03:59]} Qe6
{[%emt 0:04:58]} 41. Ne3 $1 {[%emt 0:31:30][%csl Rf7,Rf8] Après une longue
réflexion, les Blancs choisissent d'échanger les Q malgré la qualite de
moins car les R Noires sont assez mal placées} Qxa2 {[%emt 0:10:45]} 42. Rxa2
{[%emt 0:00:00]} Bg5 {[%emt 0:00:03]} 43. Nd5 {[%emt 0:00:00]} Bf4 {[%emt 0:02:
56]} 44. Bh4 {[%emt 0:00:00]} g5 {[%emt 0:02:01]} 45. Bf2 {[%emt 0:00:00]} Bc1
{[%emt 0:02:33]} 46. Be1 {[%emt 0:00:00]} Rd8 {[%emt 0:06:37]} 47. Ra7 {
[%emt 0:00:00]} Rf6 $5 {[%emt 0:00:12]} (47... Rff8 $13) 48. Nxf6+ {[%emt 0:00:
00]} Nxf6 {[%emt 0:00:02]} 49. Rb7 {[%emt 0:00:00]} Bd2 {[%emt 0:03:58]} 50.
Kf1 {[%emt 0:00:00] Le coup naturel joué à tempo mais les Noirs ont une
forte réponse} Nxe4 $1 {[%emt 0:00:41][%csl Re1][%cal Gd8f8]} 51. fxe4 {
[%emt 0:00:00]} Rf8+ {[%emt 0:00:06]} 52. Bf2 {[%emt 0:00:00]} Be3 {[%emt 0:00:
21]} 53. Rxb6 {[%emt 0:00:00]} Bxf2 {[%emt 0:04:28]} 54. Bc4 {[%emt 0:00:17]}
Bd4+ {[%emt 0:00:19]} 55. Ke2 {[%emt 0:00:04]} Bxc3 {[%emt 0:00:24]} 56. Be6 $1
{[%emt 0:00:39][%cal Ge6f5]} c4 {[%emt 0:02:07]} 57. Bf5+ {[%emt 0:07:18]} Kg8
{[%emt 0:00:02]} 58. Rc6 {[%emt 0:00:15]} Bd4 {[%emt 0:00:17]} 59. Be6+ {
[%emt 0:01:55]} Kh7 {[%emt 0:00:46]} 60. Bxc4 {[%emt 0:00:07][%csl Gb5] Les
Blancs ont gagné un P passé très fort mais il y a toujours le risque
d'écahnger les R pour transposer en finale de B de couleurs opposées} Rf2+ {
[%emt 0:00:23]} 61. Kd3 {[%emt 0:00:04]} Rh2 {[%emt 0:03:44]} (61... Rf1 62.
Be6 Rb1 63. Kc4 Rc1+ {La R a une meilleure distance de sécurité alors que le
P"h3" ne vaut pas grand-chose} 64. Kb4 Rb1+ 65. Bb3 $1 $18) 62. Bf7 $1 {
[%emt 0:01:31][%cal Gf7g6,Gc6c8] Menace mat en 2!} Rxh3+ {[%emt 0:00:03]
Regagne le P mais après Kc4, la Rh3 est mal placée pour contrôler la
poussée du P"b"} 63. Kc4 {[%emt 0:00:02]} g6 $8 {[%emt 0:00:36]} 64. Bxg6+ {
[%emt 0:00:49]} Kg7 {[%emt 0:00:02]} 65. Bf5 {[%emt 0:00:51]} h5 $6 {[%emt 0:
01:27] l'échange risque de mettre la R hors-jeu} 66. gxh5 {[%emt 0:01:50]}
Rxh5 {[%emt 0:00:02][%csl Rh5]} 67. b6 {[%emt 0:00:19]} Rh1 {[%emt 0:00:40]}
68. b7 {[%emt 0:00:36]} Rb1 {[%emt 0:00:16]} 69. Rc7+ {[%emt 0:00:06]} Kf6 {
[%emt 0:00:05]} 70. Kd5 $18 {[%emt 0:00:26]} Rb4 {[%emt 0:01:34]} 71. Kc6 {
[%emt 0:00:45]} Rb6+ {[%emt 0:00:30]} 72. Kd7 {[%emt 0:00:06]} Rb4 {[%emt 0:00:
11]} 73. Rc6+ {[%emt 0:02:00]} Kf7 {[%emt 0:00:48]} 74. Be6+ {[%emt 0:00:51]}
1-0

[Event "Sautron op 14th"]
[Site "Sautron"]
[Date "2014.10.25"]
[Round "6"]
[White "Haub, Thorsten Michael"]
[Black "Loiseau, Quentin"]
[Result "0-1"]
[ECO "A07"]
[WhiteElo "2444"]
[BlackElo "2354"]
[Annotator "RR"]
[PlyCount "74"]
[EventDate "2014.10.26"]
[EventType "swiss"]
[EventRounds "9"]
[EventCountry "FRA"]
[SourceTitle "EXT 2015"]
[Source "ChessBase"]
[SourceDate "2014.11.20"]
[SourceVersion "1"]
[SourceVersionDate "2014.11.20"]
[SourceQuality "1"]
[TimeControl "40/5400+30:1800+30"]
[WhiteClock "0:01:15"]
[BlackClock "0:03:50"]

1. g3 {[%emt 0:00:00]} d5 {[%emt 0:00:00]} 2. Bg2 {[%emt 0:00:00]} g6 {[%emt 0:
00:07]} 3. Nf3 {[%emt 0:01:50]} Bg7 {[%emt 0:01:56]} 4. O-O {[%emt 0:00:10]} e5
{[%emt 0:00:27]} (4... c5) 5. d3 {[%emt 0:00:09]} Ne7 {[%emt 0:00:15]} 6. Nbd2
{[%emt 0:00:21]} O-O {[%emt 0:00:18]} 7. e4 {[%emt 0:00:05]} Nbc6 {[%emt 0:00:
13]} 8. c3 {[%emt 0:00:11]} a5 {[%emt 0:00:32]} 9. a4 {[%emt 0:00:09]} h6 {
[%emt 0:00:26]} 10. exd5 {[%emt 0:03:39]} Nxd5 {[%emt 0:01:09]} 11. Nc4 {
[%emt 0:01:22]} Bf5 {[%emt 0:01:09]} 12. Re1 {[%emt 0:04:43]} Re8 {[%emt 0:00:
54]} 13. Ra3 {[%emt 0:09:21] Un plan peut-être un peu trop sophistiqué car
il n'est pas facile d'activer la Rb3 mais l'allemand a joué cette position
plusieurs fois} (13. h3 Nb6 14. Nxb6 cxb6 15. Bf1 Be6 16. Nd2 Qc7 17. Nc4 Ne7
18. Qb3 Nd5 19. Qb5 Rad8 20. Bg2 Bd7 21. Qb3 Be6 22. Qb5 Re7 23. h4 Kh7 24. Re2
f5 25. Bd2 e4 26. h5 gxh5 27. dxe4 fxe4 28. Rxe4 Bf7 29. Ne3 Nf4 30. Rxe7 Qxe7
31. Nf5 Ne2+ 32. Kh2 Qe6 33. Nxg7 Kxg7 34. Be3 {1-0 (34) Markus,R (2602)
-Svidler,P (2751) Tromsoe 2014}) 13... Nb6 $1 {[%emt 0:01:09][%csl Ra3,Rd3]}
14. Nxb6 {[%emt 0:00:28]} cxb6 {[%emt 0:00:03]} 15. Bf1 {[%emt 0:00:57]} (15.
Rb3 $6 Bxd3 16. Bf1 Bxf1 17. Qxd8 Raxd8 $15 {Haub,T (2460)-Pedersen,C (2402)
Pardubice Chladek&Tintera op-A 19th 2008 (6) 0-1}) 15... Bg4 $146 {[%emt 0:01:
08]} (15... e4 16. Nh4 Ne5 $36 {Haub,T (2462)-Mertens,H (2354) BL2-West 1112
2011 (4.4) 1-0}) 16. h3 {[%emt 0:08:37]} Be6 $11 {[%emt 0:01:17][%csl Ra3,Rb3]}
17. Be3 {[%emt 0:03:53]} Qd7 {[%emt 0:08:37] Il est difficile pour les Blancs
de justifier la position de la Ra3} 18. Kh2 {[%emt 0:07:25]} Ne7 $1 {[%emt 0:
28:46]} 19. Bc1 {[%emt 0:24:32]} (19. Bxb6 Nf5) 19... Nc6 {[%emt 0:07:22]} 20.
Be3 {[%emt 0:01:13] Le signe que les Blancs se contenteraient de la nulle} Qc7
{[%emt 0:10:48]} 21. Qc1 {[%emt 0:08:44]} g5 {[%emt 0:05:58]} 22. h4 {[%emt 0:
01:10]} f5 $5 {[%emt 0:02:43]} (22... g4 23. Nd2 f5 {[%cal Gf5f4]}) 23. hxg5 {
[%emt 0:01:45]} f4 $44 {[%emt 0:01:44]} 24. Bd2 {[%emt 0:09:18]} Qf7 {[%emt 0:
04:33][%csl Rf2,Rf3] Les Blancs jouent avec la Ra3 hors-jeu et il est temps
pour les Noirs d'attaquer sur l'aile opposée.} 25. Be2 {[%emt 0:05:28]} Bg4 {
[%emt 0:06:25]} 26. g6 $5 {[%emt 0:02:55]} Qd5 {[%emt 0:06:54]} (26... Qxg6
$143 27. Nh4) 27. Qd1 {[%emt 0:01:51]} e4 $40 {[%emt 0:02:14]} 28. dxe4 {
[%emt 0:00:53]} Rxe4 {[%emt 0:01:27][%csl Re2,Rf3][%cal Ge4e2]} 29. Nh4 $2 $138
{[%emt 0:00:45] Les Blancs n'avaient plus que 03 mns pour passer le contrôle
de temps} (29. Qb3 {[%cal Gb3g8]} Qxb3 30. Rxb3 Rxe2 31. Rxe2 Bxf3 32. Re1 Ne5
(32... Rd8 33. Bxf4) 33. Bxf4 Nc4 {[%csl Rb2,Rb3][%cal Gc4b6]} 34. Rb5 Bc6 $44
{[%csl Rb5]}) 29... fxg3+ {[%emt 0:01:35]} 30. fxg3 {[%emt 0:00:33]} Rxe2+ {
[%emt 0:00:53]} 31. Rxe2 {[%emt 0:00:09]} Qc4 {[%emt 0:00:15]} 32. Qb3 {
[%emt 0:02:33]} Bxe2 {[%emt 0:00:14]} 33. Nf5 {[%emt 0:00:15]} Rf8 {[%emt 0:00:
47]} 34. Ne3 {[%emt 0:00:33]} Qxb3 {[%emt 0:00:43]} 35. Rxb3 {[%emt 0:00:06]}
Ne5 {[%emt 0:00:15]} 36. Kg2 {[%emt 0:00:26]} Rf6 {[%emt 0:00:27]} 37. Bc1 {
[%emt 0:00:46]} Bf8 {[%emt 0:00:57]} 0-1

[Event "Sautron op 14th"]
[Site "Sautron"]
[Date "2014.10.25"]
[Round "5"]
[White "Bedouin, Xavier"]
[Black "Zubarev, Alexander2"]
[Result "1-0"]
[ECO "A07"]
[WhiteElo "2324"]
[BlackElo "2588"]
[Annotator "RR"]
[PlyCount "63"]
[EventDate "2014.10.26"]
[EventType "swiss"]
[EventRounds "9"]
[EventCountry "FRA"]
[SourceTitle "EXT 2015"]
[Source "ChessBase"]
[SourceDate "2014.11.20"]
[SourceVersion "1"]
[SourceVersionDate "2014.11.20"]
[SourceQuality "1"]
[TimeControl "40/5400+30:1800+30"]
[WhiteClock "0:19:59"]
[BlackClock "0:19:43"]

1. Nf3 {[%emt 0:00:00]} Nf6 {[%emt 0:04:37]} 2. g3 {[%emt 0:00:08]} d5 {
[%emt 0:01:14]} 3. Bg2 {[%emt 0:00:34]} c6 {[%emt 0:00:17]} 4. O-O {[%emt 0:00:
31]} Bf5 {[%emt 0:00:11]} (4... Bg4) 5. d3 {[%emt 0:00:34]} e6 {[%emt 0:00:45]}
(5... h6 {[%cal Gf5h7]}) 6. Nc3 $5 {[%emt 0:03:01] Un coup assez rare} (6. Nbd2
) (6. c4 {[%csl Rb7][%cal Gd1b3]} h6 7. cxd5 exd5 8. Nc3 Be7 9. Qb3 $14 (9. Nd4
Bh7 10. e4 O-O 11. Bf4 $14 {Olafsson,F-Portisch,L Bled 1961 (19) 1-0})) 6... h6
{[%emt 0:02:24]} 7. Nd2 {[%emt 0:00:41][%cal Ge2e4]} Bh7 {[%emt 0:02:22]} (7...
Be7 8. e4 Bh7 9. Qe2 $14 {[%csl Rh7]}) 8. e4 {[%emt 0:00:27][%csl Rh7] Enferme
le Bh7} Be7 {[%emt 0:00:26]} 9. Qe2 {[%emt 0:03:58]} O-O {[%emt 0:01:18]} 10.
f4 {[%emt 0:00:46]} Na6 {[%emt 0:01:16]} (10... Nbd7 11. Kh1 a5 12. a4 Qb6 13.
g4 dxe4 14. dxe4 Qa6 15. Qf3 Bb4 16. e5 Nd5 17. Nce4 f5 18. exf6 N7xf6 19. c3
Be7 20. Ng3 Qd3 21. g5 Qxf3 22. Rxf3 hxg5 23. fxg5 Ng4 24. Nde4 Rxf3 25. Bxf3
Ne5 26. Bg2 Rf8 27. b3 Nd3 28. Bd2 Nf2+ 29. Kg1 Nxe4 30. Nxe4 Nf4 31. Bf3 Nh3+
32. Kg2 Bxe4 33. Bxe4 Nxg5 34. Bxg5 Bxg5 35. Rd1 Rd8 36. Rxd8+ Bxd8 37. Kf3 Kf7
38. Bd3 Kf6 39. Ke4 Bc7 40. h3 {Svidler,P (2749)-Potkin,V (2651) Moscow 2012 1/
2-1/2}) (10... c5 11. exd5 exd5 12. g4 Nc6 13. g5 $36 {Khairullin,I (2605)
-Vescovi,G (2660) Moscow Aeroflot op-A 9th 2010 (4) 1/2}) 11. Kh1 {[%emt 0:02:
25]} Nb4 $146 {[%emt 0:01:15]} (11... Rc8 12. g4 Nb4 13. g5 hxg5 14. fxg5 Nxe4
15. Ndxe4 dxe4 16. Nxe4 c5 17. Be3 Nd5 18. Bd2 b5 19. Rf2 c4 20. d4 Bf5 21. c3
g6 22. Ng3 Nb6 23. h4 Bd6 24. Nxf5 exf5 25. Qf3 Re8 26. Re1 Rxe1+ 27. Bxe1 Rc7
28. Re2 Re7 29. Bf2 Bc7 30. Kg1 Rxe2 31. Qxe2 Nd5 32. Qf3 Nf4 33. Qa8 Qxa8 34.
Bxa8 Nd3 35. Bc6 b4 36. cxb4 Nxb2 37. Bd5 c3 38. Bb3 Nd3 39. a3 Bb6 40. Be3 f4
41. Bf2 {Markus,R (2557)-Riazantsev,A (2638) Plovdiv 2008 0-1}) 12. Nf3 {
[%emt 0:03:09]} a5 {[%emt 0:04:30]} 13. Ne5 {[%emt 0:02:35]} (13. a3) 13... a4
$5 {[%emt 0:00:22] Joué à tempo mais les compensations pour le P sont assez
peu claires.} 14. a3 {[%emt 0:04:14]} Na6 {[%emt 0:00:13]} 15. Nxa4 {[%emt 0:
02:02] Relève le gant} dxe4 {[%emt 0:01:38]} 16. dxe4 {[%emt 0:00:40]} Qc7 {
[%emt 0:01:00]} 17. Nc3 {[%emt 0:02:17]} Nc5 {[%emt 0:03:18]} 18. b4 {[%emt 0:
02:24]} (18. Bd2 $5 {Plus souple}) 18... Ncd7 {[%emt 0:01:06]} 19. Nxd7 {
[%emt 0:05:09]} Nxd7 {[%emt 0:00:08]} 20. Bb2 {[%emt 0:00:29]} Rfc8 {[%emt 0:
10:51][%cal Gb7b5] Un plan assez risqué} (20... Rfd8 {Plus naturel}) 21. Rfc1
{[%emt 0:14:10]} b5 {[%emt 0:03:27]} 22. Nd1 $1 {[%emt 0:03:24][%cal Gc2c4,
Gc1c7]} Nb6 {[%emt 0:01:33][%csl Gc4]} 23. Ne3 {[%emt 0:00:28]} Na4 {[%emt 0:
04:56]} 24. c4 {[%emt 0:05:07]} c5 $2 {[%emt 0:13:04]} (24... Nxb2 25. Qxb2 Qb7
(25... Bf6 $2 26. e5)) 25. cxb5 {[%emt 0:05:00]} Qb6 {[%emt 0:02:22]} (25...
Qb7) 26. Be5 $1 {[%emt 0:15:33]} f6 {[%emt 0:02:06]} 27. Bc3 {[%emt 0:00:54]}
Nxc3 {[%emt 0:06:51]} 28. Rxc3 {[%emt 0:00:08]} cxb4 {[%emt 0:00:57]} 29. Rxc8+
{[%emt 0:00:14]} Rxc8 {[%emt 0:00:02]} 30. axb4 {[%emt 0:02:56]} Bxe4 $4 {
[%emt 0:10:58] Le GMI n'était pourtant pas en zeitnot mais il gaffe après
une longue réflexion.} (30... Bxb4 $8) 31. Bxe4 {[%emt 0:00:42]} Qd4 {[%emt 0:
00:20][%cal Gd4a1,Gd4e4]} 32. Nc2 {[%emt 0:01:21][%csl Rg8][%cal Ge2e4,Gc2a1,
Ge4h7] Et le GMI a oublié que sur Rc2, les Blancs font un échec
intermédiaire...} 1-0

[Event "Match/Team URS-World 20,5-19,5"]
[Site "Belgrade"]
[Date "1970.03.29"]
[Round "1.6"]
[White "Reshevsky, Samuel Herman"]
[Black "Smyslov, Vassily V"]
[Result "1/2-1/2"]
[ECO "A07"]
[WhiteElo "2590"]
[BlackElo "2620"]
[Annotator "Reshevsky/Smyslov"]
[PlyCount "60"]
[EventDate "1970.03.29"]
[EventType "team"]
[EventRounds "4"]
[EventCountry "YUG"]
[SourceTitle "MCL"]
[Source "ChessBase"]
[SourceDate "1999.07.01"]
[SourceVersion "1"]
[SourceVersionDate "1999.07.01"]
[SourceQuality "1"]
[WhiteTeam "World"]
[BlackTeam "Soviet Union"]
[BlackTeamCountry "URS"]
[TimeControl "40/9000:16/5400:0"]

1. g3 d5 2. Nf3 c6 3. Bg2 Bf5 (3... Bg4 {Reshevsky=:R}) 4. O-O e6 5. d3 Be7 6.
Nbd2 Nf6 7. Qe1 h6 8. e4 dxe4 (8... Bh7 9. e5 {Smyslov=:S}) 9. dxe4 Bh7 10. Qe2
Nbd7 11. e5 (11. b3 Nc5 12. Bb2 (12. e5 Nd5 $17) 12... Bxe4 13. Nxe4 (13. Bxf6
Bxf3 14. Bxe7 Bxe2 15. Bxd8 Rxd8 $19) 13... Ncxe4 $17 {R}) 11... Nd5 12. Ne4
Nc5 13. Nxc5 Bxc5 14. Nd2 Qc7 (14... Bxc2 $2 15. Qc4 {R}) 15. a3 $16 O-O 16.
Nb3 $6 $14 (16. Kh1 $142 {P f4, P e4 e5?, f4 R}) 16... Be7 17. Be4 Bxe4 18.
Qxe4 Rfd8 $10 {R} 19. Bd2 (19. a4 b6 20. a5 $1 {Smyslov}) 19... Bf8 20. Rfd1
Nb6 21. a4 (21. Ba5 Rd5 {S}) 21... Rd5 $1 {S} 22. a5 Nd7 23. Bc3 Rd8 24. Rxd5
cxd5 (24... exd5 25. Qd4 a6 26. Re1 {S}) 25. Qe3 a6 26. Bd4 Rc8 (26... Qxc2 $6
27. Rc1 Qf5 28. Rc7 $16 {R/S}) 27. c3 Qc6 28. Nc1 Nc5 29. b4 Na4 $2 {R} (29...
Nd7 {R/S}) 30. Nd3 Qb5 {Draw suggested by Smyslov.} (30... Qb5 31. Ra3 {P d2-d1
} (31. Qd2 b6 $1 32. Qc2 (32. axb6 Nxb6 33. Ra5 Nc4 34. Rxb5 Nxd2) 32... bxa5
$1 (32... Nxc3 33. axb6 $1) 33. Rxa4 axb4 34. Nc1 $1 {S}) 31... b6 32. axb6 Rb8
33. Nc5 $16 {R}) (30... Nxc3 31. Bxc3 Qxc3 32. Rc1 {S}) 1/2-1/2